bitfinex-derivatives/quotes_ETHF0:USTF0_20251009
["timestamp","ask_amount","ask_price","bid_price","bid_amount"]
[1760023805560,0.8204,4316.2,4316.1,0.77390796]
[1760023805764,0.8204,4316.2,4316.1,0.00220796]
[1760023806060,5.8204,4316.2,4316.1,0.00220796]
[1760023806261,0.8204,4316.2,4316.1,0.00220796]
[1760023806556,0.00162786,4316.4,4316.1,0.77390796]
[1760023806761,0.234,4316.3,4316.2,0.7717]
[1760023807258,1.0544,4316.3,4316.2,0.7717]
[1760023807560,0.00162786,4316.4,4316.3,1.18855]
[1760023807764,0.23562786,4316.4,4316.3,1.18855]
[1760023807960,0.8204,4316.2,4316.1,0.00220796]
[1760023808357,0.8204,4316.2,4316.1,0.77390796]
[1760023808869,0.8204,4316.2,4316.1,0.00220796]
[1760023809367,5.8204,4316.2,4316.1,0.00220796]
[1760023809868,5.8204,4316.2,4315.3,3.2078]
[1760023809869,1.23734,4315.4,4315.3,40.8]
[1760023810162,1.23739,4314.9,4314.8,0.7717]
[1760023810466,1.23734,4315.4,4314.8,41.98869]
[1760023810760,3.2078,4316.0,4315.3,0.7717]
[1760023810966,0.234,4315.9,4315.8,1.1886]
[1760023811162,0.82202786,4316.4,4315.9,0.7717]
[1760023811163,0.41685,4316.3,4315.9,0.7717]
[1760023811462,1.47127,4316.2,4315.6,0.7717]
[1760023811658,1.0544,4316.2,4316.0,1.18858]
[1760023811963,0.00162786,4316.4,4315.5,1.36521]
[1760023811964,0.00162786,4316.4,4316.3,0.7717]
[1760023812360,1.05602786,4316.4,4315.6,0.7717]
[1760023812563,0.41689,4315.9,4315.7,40.8]
[1760023812760,0.41689,4315.9,4315.0,0.3229]
[1760023812761,1.0165,4315.8,4315.1,0.7999]
[1760023812966,0.7825,4315.8,4315.4,0.41694]
[1760023813160,0.234,4315.7,4315.0,1.36533]
[1760023813365,0.7825,4315.4,4315.3,0.7999]
[1760023813562,0.234,4315.4,4314.8,0.00225251]
[1760023813762,0.7825,4315.0,4314.9,1.21689]
[1760023813972,1.0165,4315.0,4314.9,1.21689]
[1760023814172,0.234,4315.0,4314.9,1.21689]
[1760023814475,0.7825,4315.9,4315.2,0.41696]
[1760023814771,0.7825,4315.6,4315.5,0.41692]
[1760023815164,0.41693,4315.5,4315.1,0.7999]
[1760023815368,1.04228,4315.8,4314.8,0.00225251]
[1760023815574,1.19948,4315.0,4314.8,0.00225251]
[1760023815872,0.234,4314.9,4314.8,1.21915251]
[1760023816370,1.0165,4314.9,4314.8,0.41925251]
[1760023817368,0.234,4314.9,4314.8,1.21915251]
[1760023817569,1.0165,4314.9,4314.8,0.00225251]
[1760023819066,1.04263,4314.3,4313.2,0.18235138]
[1760023819273,0.41714,4313.4,4313.2,0.18235138]
[1760023819471,0.7825,4313.3,4313.2,0.18235138]
[1760023819672,1.0165,4313.3,4313.0,40.8]
[1760023819976,0.7825,4313.1,4313.0,0.00234454]
[1760023820275,1.1061,4313.0,4311.8,3.2078]
[1760023820466,3.2078,4312.8,4312.6,0.4172]
[1760023820666,0.234,4312.7,4312.5,1.21712]
[1760023820875,0.78540656,4313.3,4312.5,1.1083]
[1760023821074,0.234,4313.2,4312.5,1.1083]
[1760023821375,0.7825,4312.9,4312.5,0.41921843]
[1760023821575,0.00290656,4313.3,4312.6,0.7999]
[1760023821778,0.234,4313.2,4313.1,0.41716]
[1760023821973,0.00290656,4313.3,4313.2,0.7999]
[1760023822276,0.7825,4313.2,4312.6,0.7999]
[1760023822474,1.19966,4313.2,4312.5,0.00200843]
[1760023822773,3.2078,4312.9,4312.5,0.00200843]
[1760023822971,0.7825,4313.0,4312.9,0.41718]
[1760023823172,0.234,4313.0,4312.7,0.7999]
[1760023823379,0.78540656,4313.3,4313.0,0.41717]
[1760023823673,0.7825,4313.2,4313.1,0.41716]
[1760023823872,1.0165,4313.2,4313.1,0.41716]
[1760023824274,0.7825,4313.1,4313.0,0.41717]
[1760023824474,0.41718,4312.9,4312.6,0.41721]
[1760023824675,0.7825,4312.7,4312.6,0.41721]
[1760023824871,0.3236,4313.0,4312.5,0.00200843]
[1760023824872,0.7825,4313.0,4312.9,1.21708]
[1760023825076,1.0165,4313.0,4312.9,0.41718]
[1760023825282,0.5576,4313.0,4312.5,0.00200843]
[1760023825473,3.55305482,4313.0,4312.6,0.7999]
[1760023825773,0.7825,4312.9,4312.7,0.4172]
[1760023825979,0.234,4312.8,4312.7,0.4172]
[1760023826168,0.7825,4312.8,4312.7,0.4172]
[1760023826372,0.1854,4313.2,4313.0,0.41717]
[1760023826573,0.7825,4313.1,4313.0,0.41717]
[1760023826776,1.0165,4313.1,4313.0,0.41717]
[1760023827278,0.74077,4313.0,4312.5,0.00200843]
[1760023827481,0.4172,4312.7,4312.5,0.41922843]
[1760023827679,1.0165,4312.6,4312.5,0.41922843]
[1760023827883,1.0165,4312.6,4312.5,0.00200843]
[1760023828181,0.7825,4312.6,4312.5,0.00200843]
[1760023828387,1.0165,4312.6,4312.5,0.80190843]
[1760023828581,0.1854,4313.2,4312.5,0.80190843]
[1760023828582,0.7825,4312.9,4312.8,1.21709]
[1760023828781,1.0165,4312.9,4312.8,1.21709]
[1760023829282,1.0165,4312.9,4312.8,0.41719]
[1760023829683,0.7825,4312.9,4312.8,0.41719]
[1760023829884,0.9679,4313.2,4313.1,1.21706]
[1760023830179,1.2019,4313.2,4313.1,0.41716]
[1760023830379,1.2019,4313.2,4312.8,0.41719]
[1760023830380,0.7825,4312.9,4312.8,0.41719]
[1760023830580,0.1854,4313.2,4313.1,0.41716]
[1760023830776,0.1854,4313.2,4313.1,1.21706]
[1760023831178,1.1061,4314.0,4313.1,0.7999]
[1760023831380,0.7825,4314.0,4313.9,0.7999]
[1760023831584,0.234,4314.0,4313.9,0.7999]
[1760023831776,6.13809164,4314.5,4314.3,0.41705]
[1760023831976,1.0165,4314.4,4314.3,1.21695]
[1760023832181,0.78412526,4314.4,4314.3,0.41705]
[1760023832384,1.01812526,4314.4,4314.3,0.41705]
[1760023832581,0.78412526,4314.4,4314.3,0.41705]
[1760023832777,0.00162526,4314.4,4314.3,1.21695]
[1760023832982,0.23562526,4314.4,4314.3,1.21695]
[1760023833178,1.01812526,4314.4,4314.3,0.41705]
[1760023833985,0.23562526,4314.4,4314.3,1.21695]
[1760023834474,0.00162526,4314.4,4314.3,1.21695]
[1760023835073,0.00162526,4314.4,4313.8,3.2078]
[1760023835074,0.3236,4314.0,4313.8,3.2078]
[1760023835274,0.41712,4313.5,4312.5,0.80190843]
[1760023835475,3.2078,4312.9,4312.7,1.2171]
[1760023835679,3.2078,4313.4,4312.7,0.7999]
[1760023835883,0.235,4314.1,4314.0,0.3084]
[1760023836078,0.235,4314.1,4314.0,1.52537]
[1760023836387,3.2078,4314.6,4314.3,1.21695]
[1760023836584,0.23662526,4314.4,4314.3,1.21695]
[1760023836888,0.65366526,4314.4,4314.1,0.41706]
[1760023837185,0.65366526,4314.4,4314.2,0.41705]
[1760023837388,0.41706,4314.2,4314.0,40.8]
[1760023837580,3.9903,4314.1,4314.0,40.8]
[1760023838082,0.7825,4313.9,4313.5,0.7999]
[1760023838286,3.4428,4314.1,4312.7,0.41719]
[1760023838287,0.41718,4313.0,4312.7,0.41719]
[1760023838584,0.235,4312.9,4312.8,41.5999]
[1760023838781,3.2078,4313.1,4312.9,0.41718]
[1760023838977,0.235,4313.0,4312.6,0.7999]
[1760023839179,0.235,4313.0,4312.5,0.00200843]
[1760023839180,0.41719,4312.9,4312.5,0.00200843]
[1760023839383,4.40751,4312.6,4312.5,0.00200843]
[1760023839581,4.64251,4312.6,4312.5,0.00200843]
[1760023840885,4.2253,4312.6,4312.5,0.00200843]
[1760023841088,0.7825,4312.8,4312.6,0.41721]
[1760023841291,0.235,4312.7,4312.6,0.7999]
[1760023841493,3.2078,4313.2,4312.5,0.31040843]
[1760023841494,3.2078,4313.2,4313.1,0.7999]
[1760023841785,3.85996,4313.2,4313.0,1.21706]
[1760023841993,0.7825,4313.1,4313.0,1.21706]
[1760023842291,3.2078,4313.2,4313.0,1.21706]
[1760023842484,0.235,4313.1,4313.0,1.21706]
[1760023842785,1.0002,4313.1,4313.0,1.19736]
[1760023843289,0.7352,4313.1,4313.0,1.19736]
[1760023843489,0.7352,4313.1,4313.0,0.41716]
[1760023843687,0.235,4313.1,4313.0,1.19736]
[1760023843886,3.2078,4313.2,4313.1,0.7802]
[1760023844093,3.4428,4313.2,4313.1,0.7802]
[1760023844386,3.4428,4313.2,4313.0,0.41717]
[1760023844595,3.2078,4313.2,4313.1,0.7802]
[1760023844897,3.4428,4313.2,4313.1,0.7802]
[1760023845088,3.4428,4313.2,4313.0,0.41717]
[1760023845395,0.7953,4313.1,4312.5,0.75380843]
[1760023845990,1.21247,4313.0,4312.9,0.41718]
[1760023846191,0.41719,4312.9,4312.7,0.41719]
[1760023846390,3.4428,4313.2,4312.7,1.16899]
[1760023846391,0.235,4312.8,4312.7,1.16899]
[1760023846598,1.0303,4312.8,4312.7,1.16899]
[1760023847696,3.2078,4313.2,4312.7,0.7518]
[1760023847988,3.2078,4313.2,4313.1,0.41716]
[1760023847989,4.0031,4313.2,4313.1,0.41716]
[1760023848195,4.76709463,4313.2,4313.1,0.41716]
[1760023848391,3.2078,4313.2,4313.1,1.16896]
[1760023848591,3.4418,4313.2,4313.1,1.16896]
[1760023849091,4.2371,4313.2,4313.1,1.16896]
[1760023849291,3.4418,4313.2,4313.1,1.16896]
[1760023849602,3.2078,4313.7,4313.6,1.16891]
[1760023849791,3.4418,4313.7,4313.6,1.16891]
[1760023849987,3.4418,4313.7,4313.6,41.96891]
[1760023850589,3.2078,4314.3,4314.0,1.35639]
[1760023850893,3.2078,4314.3,4314.2,1.16885]
[1760023851301,0.00162526,4314.4,4314.3,0.7518]
[1760023851497,3.2078,4314.8,4314.3,0.7518]
[1760023851498,3.2078,4314.8,4314.7,0.41701]
[1760023851699,3.2078,4315.8,4315.7,1.16871]
[1760023851899,3.4418,4315.8,4315.7,1.16871]
[1760023852093,3.4418,4315.8,4315.7,41.96871]
[1760023852396,0.2988,4317.0,4316.4,0.41684]
[1760023852397,0.41681,4316.8,4316.4,0.41684]
[1760023852595,0.00193927,4316.8,4316.7,0.7518]
[1760023852794,0.23593927,4316.8,4316.7,0.7518]
[1760023853398,0.00193927,4316.8,4316.7,0.7518]
[1760023853603,0.23593927,4316.8,4316.7,0.7518]
[1760023854199,0.00193927,4316.8,4316.7,0.7518]
[1760023854500,0.1852,4317.5,4316.8,0.7518]
[1760023854802,0.1852,4317.5,4317.4,1.16855]
[1760023855004,0.4192,4317.5,4317.4,41.96855]
[1760023855593,0.1852,4317.5,4317.4,46.96855]
[1760023855900,0.18812424,4317.5,4317.4,46.96855]
[1760023856691,0.022,4317.9,4317.8,1.16851]
[1760023856890,3.2078,4318.5,4318.4,1.16845]
[1760023857506,3.2078,4318.5,4318.4,0.7518]
[1760023857800,3.20968953,4318.5,4318.4,0.7518]
[1760023858402,3.20968953,4318.5,4318.4,41.5518]
[1760023860201,0.00188953,4318.5,4318.4,41.5518]
[1760023860499,0.23588953,4318.5,4318.4,41.5518]
[1760023860802,4.23898953,4318.5,4318.4,40.8]
[1760023860996,0.41672,4317.7,4317.4,1.16854]
[1760023861197,0.234,4317.6,4317.4,1.16854]
[1760023861404,0.234,4317.6,4317.5,41.1137]
[1760023861607,0.234,4317.6,4317.5,41.8655]
[1760023861804,0.7953,4317.4,4317.1,3.2078]
[1760023862103,0.234,4317.3,4316.7,0.7518]
[1760023862302,0.41678,4317.1,4316.8,40.8]
[1760023862494,3.2078,4317.9,4317.1,0.7518]
[1760023862697,3.4418,4317.9,4317.7,0.41672]
[1760023862905,3.4418,4317.9,4317.8,0.7518]
[1760023863104,3.2078,4317.9,4317.8,0.7518]
[1760023863402,0.234,4317.9,4317.8,0.7518]
[1760023863598,1.0293,4317.9,4317.2,0.7518]
[1760023863800,3.2078,4317.4,4317.3,41.5518]
[1760023864009,4.2371,4317.4,4316.6,0.7518]
[1760023864302,0.4168,4316.9,4316.5,0.3137]
[1760023864499,0.234,4316.8,4316.6,0.7518]
[1760023864807,0.234,4316.7,4316.6,0.41682]
[1760023865103,0.41677,4317.2,4316.7,0.41681]
[1760023865403,0.234,4317.1,4316.7,0.4168]
[1760023865604,1.21211,4316.8,4316.6,0.7518]
[1760023865807,1.0293,4316.7,4316.6,0.7518]
[1760023866200,0.234,4316.7,4316.6,0.7518]
[1760023866400,3.2078,4317.3,4317.2,0.41676]
[1760023866610,3.2078,4317.3,4317.2,1.16856]
[1760023866810,0.7953,4318.6,4317.7,0.41672]
[1760023866811,0.234,4317.8,4317.7,0.41672]
[1760023867103,0.234,4317.8,4317.3,0.41676]
[1760023867104,0.41679,4317.0,4316.4,0.41936069]
[1760023867307,0.7953,4316.7,4316.4,0.75432069]
[1760023867606,0.235,4316.6,4316.5,0.7518]
[1760023871002,0.235,4316.6,4316.5,41.5518]
[1760023871397,0.235,4316.6,4316.5,41.8655]
[1760023871712,0.235,4316.6,4316.5,41.5518]
[1760023873101,0.235,4316.6,4316.4,0.00252069]
[1760023873102,0.41683,4316.5,4316.4,0.00252069]
[1760023873307,1.18693,4316.5,4316.4,0.00252069]
[1760023873715,3.2078,4317.1,4316.6,0.41682]
[1760023874004,3.2078,4317.1,4317.0,0.2998]
[1760023874205,3.4428,4317.1,4317.0,1.068]
[1760023874614,3.2078,4317.1,4317.0,1.068]
[1760023874809,3.2078,4317.7,4317.5,0.2998]
[1760023875006,3.2078,4317.7,4317.6,1.18493]
[1760023875207,3.2078,4317.7,4317.6,41.98493]
[1760023876403,3.2078,4317.7,4317.6,41.5682]
[1760023878117,3.62447,4318.3,4317.6,41.5682]
[1760023878410,0.65167,4318.2,4318.1,0.7682]
[1760023878618,1.18681,4317.8,4317.7,0.7682]
[1760023878911,1.42181,4317.8,4317.7,0.7682]
[1760023879514,1.25908953,4318.5,4318.4,0.41665]
[1760023879708,0.7701,4318.9,4318.4,3.2078]
[1760023879903,1.072,4319.0,4318.7,0.41661]
[1760023880111,1.072,4319.0,4318.4,3.2078]
[1760023880112,1.072,4318.5,4318.4,3.2078]
[1760023880304,1.307,4318.5,4318.4,3.2078]
[1760023880817,1.0746729,4318.5,4318.4,44.0078]
[1760023881012,1.3096729,4318.5,4318.4,44.0078]
[1760023881211,1.3096729,4318.5,4316.8,2.084]
[1760023881212,0.3019,4316.0,4315.5,1.65739772]
[1760023881417,0.3019,4316.0,4314.4,0.41704]
[1760023881418,0.3019,4314.5,4314.4,0.41704]
[1760023881614,0.4679,4314.5,4314.4,0.41704]
[1760023881911,0.7701,4314.4,4313.8,3.2078]
[1760023882119,1.072,4314.0,4313.8,3.2078]
[1760023882313,0.8521,4313.9,4313.8,3.21067691]
[1760023882625,0.8521,4313.9,4313.8,0.00287691]
[1760023883419,0.7701,4313.4,4313.0,0.41716]
[1760023883621,0.7701,4313.2,4313.0,0.41716]
[1760023884312,1.072,4313.0,4312.9,0.02318652]
[1760023884508,1.072,4313.0,4312.9,0.02561728]
[1760023884720,1.072,4313.0,4312.9,0.44278728]
[1760023885015,1.072,4313.0,4312.8,3.2078]
[1760023885211,0.7701,4311.9,4311.8,0.41729]
[1760023885411,0.9831,4311.9,4311.8,0.41729]
[1760023886121,0.9831,4311.9,4311.8,0.41997905]
[1760023886421,1.0051,4311.9,4311.8,0.41997905]
[1760023887326,3.2078,4312.3,4311.8,0.41997905]
[1760023887327,0.8364,4312.3,4311.8,5.90168905]
[1760023887620,0.30400555,4314.0,4313.4,0.41713]
[1760023887816,0.30400555,4314.0,4313.4,3.85993]
[1760023888811,0.30400555,4314.0,4313.4,3.62493]
[1760023889016,0.13,4313.8,4313.4,3.62493]
[1760023889723,1.072,4313.5,4313.4,3.62493]
[1760023891114,0.58848,4313.5,4313.4,3.62493]
[1760023891319,0.89038,4313.5,4313.4,3.62493]
[1760023891518,0.42636,4313.5,4313.4,3.62493]
[1760023891722,0.30400555,4314.0,4313.9,0.41708]
[1760023892017,0.3019,4314.5,4314.4,0.41704]
[1760023892212,0.3019,4314.5,4314.4,3.2078]
[1760023892918,0.142,4315.2,4314.5,0.41703]
[1760023893128,0.18740039,4314.7,4314.5,0.41703]
[1760023893426,0.00200039,4314.7,4314.5,0.41703]
[1760023893720,0.7701,4314.6,4314.5,0.41703]
[1760023894518,5.0,4314.6,4314.4,3.2078]
[1760023894820,0.3019,4313.0,4312.9,3.2078]
[1760023895018,1.072,4313.0,4312.9,3.2078]
[1760023895213,1.307,4313.0,4312.9,3.2078]
[1760023897021,1.072,4313.0,4312.9,3.2078]
[1760023897221,1.307,4313.0,4312.9,3.2078]
[1760023898125,1.072,4313.0,4312.9,3.2078]
[1760023898332,1.307,4313.0,4312.9,3.2078]
[1760023901729,1.307,4313.0,4312.8,0.41719]
[1760023901926,0.7701,4314.2,4313.9,0.41708]
[1760023902222,1.072,4314.0,4313.9,3.62488]
[1760023905427,0.9604,4313.4,4313.3,3.62494]
[1760023906429,0.9604,4313.4,4312.2,0.235]
[1760023906636,0.9604,4313.4,4313.1,0.41716]
[1760023906825,0.9604,4313.4,4313.1,1.38855]
[1760023907026,3.6088,4313.5,4312.6,0.9714]
[1760023907228,3.6088,4313.5,4313.0,0.41717]
[1760023907530,3.6088,4313.5,4312.6,0.9714]
[1760023907531,0.9604,4313.4,4313.1,0.41716]
[1760023907732,3.6088,4313.5,4313.3,0.41714]
[1760023907927,0.9604,4313.8,4313.0,3.2078]
[1760023908129,0.235,4313.7,4313.1,0.9714]
[1760023908625,0.235,4313.6,4313.4,0.41713]
[1760023908823,0.9604,4313.6,4313.4,0.41713]
[1760023909025,0.235,4313.5,4313.4,0.41713]
[1760023909227,0.9604,4313.6,4313.4,0.41713]
[1760023909425,0.235,4313.5,4313.4,0.41713]
[1760023909827,0.9604,4313.6,4313.4,0.41713]
[1760023910028,1.1954,4313.6,4313.4,0.41713]
[1760023910330,3.2078,4314.0,4313.8,0.41709]
[1760023910534,0.235,4313.9,4313.8,0.41709]
[1760023910730,3.20980039,4314.7,4313.8,1.38849]
[1760023911038,1.1954,4314.6,4313.9,0.9714]
[1760023911230,0.401,4314.5,4313.9,0.9714]
[1760023911533,1.3614,4314.5,4314.4,0.41703]
[1760023912226,0.9604,4314.4,4314.3,0.41704]
[1760023913230,5.9604,4314.4,4313.5,0.9714]
[1760023913429,4.1682,4314.2,4314.1,0.41706]
[1760023914042,0.9604,4314.2,4314.1,0.41706]
[1760023914340,1.3614,4314.5,4314.4,0.41704]
[1760023914531,1.5964,4314.5,4314.4,0.41704]
[1760023914838,0.401,4314.5,4314.0,0.41707]
[1760023915136,0.9604,4314.2,4314.1,0.41706]
[1760023916633,3.20980039,4314.7,4314.1,0.41706]
[1760023916634,3.20980039,4314.7,4314.1,0.9714]
[1760023916832,0.235,4314.6,4314.5,0.41703]
[1760023917036,1.1954,4314.6,4314.5,0.41703]
[1760023917238,3.20980039,4314.7,4314.5,1.38843]
[1760023917539,1.1954,4314.6,4314.5,0.41703]
[1760023918736,0.9604,4314.6,4314.5,0.41703]
[1760023919247,1.1954,4314.6,4314.5,0.41703]
[1760023920341,0.9604,4314.6,4314.5,0.41703]
[1760023920641,1.1954,4314.6,4314.5,0.41703]
[1760023921242,0.9604,4314.4,4314.0,0.41707]
[1760023921440,0.9604,4314.4,4314.2,0.41705]
[1760023921736,0.00200039,4314.7,4314.6,1.38842]
[1760023922338,3.2078,4315.9,4315.2,1.38836]
[1760023922541,0.401,4316.5,4315.2,1.38836]
[1760023922542,0.9604,4316.5,4316.4,0.41684]
[1760023922742,1.1954,4316.5,4316.4,0.41684]
[1760023923046,3.2078,4316.7,4316.3,0.9714]
[1760023923247,3.44540957,4316.7,4316.6,1.38822]
[1760023924546,3.21040957,4316.7,4316.6,1.38822]
[1760023925135,3.2078,4317.5,4317.4,0.41674]
[1760023925342,0.022,4317.9,4317.7,0.41672]
[1760023925544,0.235,4317.8,4317.7,1.38812]
[1760023925745,0.022,4317.9,4317.8,0.9714]
[1760023925937,0.235,4318.3,4318.2,1.38807]
[1760023926139,0.1852,4318.6,4318.5,0.41664]
[1760023926340,0.235,4319.5,4318.5,0.3425]
[1760023926550,3.2078,4319.8,4319.6,0.41653]
[1760023926844,3.2099194,4319.8,4319.7,0.9714]
[1760023927243,0.0021194,4319.8,4319.7,0.9714]
[1760023927444,0.9604,4319.7,4319.6,0.00225729]
[1760023927643,9.1682,4319.7,4319.6,0.00225729]
[1760023928147,4.1682,4319.7,4319.6,0.00225729]
[1760023928346,4.4032,4319.7,4319.6,0.00225729]
[1760023931253,0.9604,4319.6,4318.5,0.41663]
[1760023931458,3.2078,4319.2,4318.3,0.9714]
[1760023931658,1.3614,4319.0,4318.3,1.38805]
[1760023931858,0.9604,4318.9,4318.6,0.41662]
[1760023932054,0.235,4318.8,4318.3,0.9714]
[1760023932251,0.9604,4318.7,4318.5,0.41664]
[1760023932452,0.235,4318.8,4318.5,1.38804]
[1760023932751,1.0069,4318.7,4318.5,1.34824]
[1760023932950,1.0069,4319.0,4318.8,0.41661]
[1760023933151,1.4235,4319.0,4318.6,0.41662]
[1760023933452,1.2419,4318.9,4318.7,0.9316]
[1760023933654,1.0069,4318.9,4318.7,1.34822]
[1760023933959,0.235,4318.8,4318.7,0.9316]
[1760023934152,0.235,4318.8,4318.7,1.34822]
[1760023934658,0.235,4318.8,4318.7,0.9316]
[1760023935155,0.41664,4318.5,4318.3,0.00278824]
[1760023935458,1.2419,4318.4,4318.3,0.00278824]
[1760023936355,0.4769,4318.4,4318.3,0.00278824]
[1760023936553,5.4769,4318.4,4318.3,0.00278824]
[1760023937348,5.2419,4318.4,4318.3,0.00278824]
[1760023937555,5.4769,4318.4,4318.3,0.00278824]
[1760023937756,8.46995274,4318.4,4318.3,0.00278824]
[1760023938766,0.41664,4318.5,4318.3,0.93438824]
[1760023938950,1.04153,4318.9,4318.3,0.00278824]
[1760023938951,0.41661,4318.9,4318.3,0.00278824]
[1760023939262,1.0069,4318.4,4318.3,0.00278824]
[1760023939464,1.2419,4318.4,4318.3,0.00278824]
[1760023939856,1.42362,4317.7,4317.6,3.2078]
[1760023940362,1.65862,4317.7,4317.6,4.1394]
[1760023940752,1.65862,4317.7,4317.6,3.20976825]
[1760023941257,0.9496,4318.7,4317.7,1.0276]
[1760023941560,0.4167,4317.9,4317.8,1.0276]
[1760023941759,0.6517,4317.9,4317.8,1.0276]
[1760023942261,1.6013,4317.9,4317.8,1.0276]
[1760023942461,0.6517,4317.9,4317.8,1.0276]
[1760023942854,1.6013,4317.9,4317.8,1.0276]
[1760023943053,0.41672,4317.7,4317.6,4.23736825]
[1760023943259,1.36632,4317.7,4317.6,3.20976825]
[1760023944051,0.6517,4317.9,4317.8,1.0276]
[1760023944759,1.6013,4317.9,4317.8,1.0276]
[1760023945065,1.3663,4317.9,4317.8,1.0276]
[1760023945255,1.6013,4317.9,4317.8,1.0276]
[1760023945460,0.9496,4318.4,4317.9,1.0276]
[1760023945662,0.9496,4318.2,4317.9,1.0276]
[1760023945858,0.9496,4318.2,4317.8,0.4167]
[1760023946157,0.41671,4317.8,4317.7,1.0276]
[1760023946363,0.65071,4317.8,4317.7,1.0276]
[1760023946668,0.41667,4318.3,4318.2,1.0276]
[1760023946860,0.9496,4318.9,4317.7,2.0694]
[1760023947058,0.41665,4318.4,4318.3,1.0276]
[1760023948762,0.24534,4318.6,4318.5,1.44424]
[1760023948957,0.9496,4318.9,4318.7,0.41662]
[1760023949160,4.2512194,4319.8,4319.1,1.0276]
[1760023949364,0.1852,4319.5,4319.1,0.41658]
[1760023949566,0.41657,4319.3,4319.2,1.44417]
[1760023949761,0.234,4319.3,4319.2,1.44417]
[1760023949955,0.234,4319.3,4319.2,1.0276]
[1760023950364,0.9496,4319.3,4319.2,1.0276]
[1760023950564,0.4166,4318.9,4318.2,3.2078]
[1760023950862,0.41662,4318.7,4318.5,1.82214]
[1760023951065,0.234,4318.8,4318.7,0.41662]
[1760023951262,0.234,4318.8,4318.7,1.0276]
[1760023951461,1.1348,4319.5,4318.8,1.0276]
[1760023951659,0.1852,4319.5,4319.4,1.0276]
[1760023951969,0.4192,4319.5,4319.4,1.0276]
[1760023952560,0.1852,4319.5,4319.4,1.0276]
[1760023952764,0.1852,4319.5,4319.4,6.0276]
[1760023953164,0.0021194,4319.8,4319.7,1.44412]
[1760023954165,1.43802,4321.0,4319.7,1.44412]
[1760023954166,0.234,4320.6,4320.5,0.3779]
[1760023954467,0.234,4320.6,4320.5,0.79434]
[1760023954870,0.234,4320.6,4320.5,1.82194]
[1760023955062,0.41643,4320.7,4320.6,1.0276]
[1760023955363,1.36605,4320.5,4320.4,1.0276]
[1760023955566,0.00259336,4320.7,4320.5,0.41645]
[1760023955766,0.00259336,4320.7,4320.3,1.0276]
[1760023955968,1.3466,4320.5,4319.7,1.0276]
[1760023956165,3.2078,4320.4,4319.7,1.0276]
[1760023956364,1.1836,4320.3,4319.6,3.2078]
[1760023956564,0.00259336,4320.7,4320.5,0.3779]
[1760023956869,0.95219336,4320.7,4320.6,1.0276]
[1760023957067,0.41647,4320.3,4320.2,3.2078]
[1760023957362,0.41654,4319.5,4319.4,3.2078]
[1760023957565,0.41658,4319.2,4318.9,3.2078]
[1760023957759,0.41658,4319.1,4318.9,3.2078]
[1760023957966,1.1836,4319.0,4318.9,3.2078]
[1760023958267,0.234,4319.0,4318.9,4.2354]
[1760023958472,1.1836,4319.0,4318.9,4.2354]
[1760023958664,0.234,4319.0,4318.9,4.2354]
[1760023958863,0.41657,4319.3,4319.0,1.0276]
[1760023959163,0.41657,4319.3,4319.1,1.0276]
[1760023959164,0.234,4319.2,4319.1,1.0276]
[1760023959760,1.1836,4319.2,4319.1,1.0276]
[1760023960663,0.234,4319.2,4319.1,1.0276]
[1760023960864,0.41658,4319.1,4319.0,1.44418]
[1760023961065,0.65058,4319.1,4319.0,1.44418]
[1760023961264,0.65058,4319.1,4319.0,1.82208]
[1760023961460,0.65058,4319.1,4319.0,1.4055]
[1760023961461,0.234,4319.1,4319.0,1.4055]
[1760023961663,0.41663,4318.7,4318.5,1.0276]
[1760023961859,0.41663,4318.7,4318.4,3.2078]
[1760023962060,1.60019,4319.1,4318.6,1.0276]
[1760023962267,0.9496,4319.6,4318.5,0.3779]
[1760023962571,0.41654,4319.6,4319.5,1.79674]
[1760023962863,0.234,4319.7,4319.6,1.0031]
[1760023963061,0.41656,4319.3,4319.1,1.0031]
[1760023963260,1.04134,4319.6,4317.5,1.22487251]
[1760023963261,0.234,4319.2,4318.4,3.2078]
[1760023963570,0.41662,4318.8,4318.7,1.41972]
[1760023964367,1.0002,4319.2,4318.4,3.2078]
[1760023964575,0.65057,4319.2,4319.1,0.9283]
[1760023964873,1.40199,4319.0,4318.9,3.2078]
[1760023965564,1.40199,4319.0,4318.9,4.1361]
[1760023966161,0.65058,4319.2,4319.0,0.9283]
[1760023966368,0.65058,4319.1,4319.0,0.9283]
[1760023967174,1.63598,4319.1,4319.0,0.9283]
[1760023968668,1.63598,4319.1,4318.9,3.6244]
[1760023968669,1.63598,4319.1,4318.9,3.2078]
[1760023968976,0.9854,4319.0,4318.9,3.2078]
[1760023969177,0.65058,4319.1,4318.8,0.41661]
[1760023969178,1.402,4318.9,4318.8,0.41661]
[1760023969371,1.402,4318.9,4318.8,1.34491]
[1760023969577,0.41664,4318.5,4318.4,3.62444]
[1760023969779,0.4166,4318.9,4318.7,0.41662]
[1760023969977,0.9854,4318.8,4318.7,0.41662]
[1760023970274,0.9854,4318.8,4318.7,1.34492]
[1760023970869,0.9854,4318.8,4318.7,0.41662]
[1760023971269,0.9854,4318.8,4318.7,1.34492]
[1760023971872,0.9854,4319.0,4318.4,4.24942]
[1760023972073,0.9854,4319.0,4318.6,0.9283]
[1760023972568,0.41656,4319.3,4318.8,1.04153]
[1760023972780,0.234,4319.2,4318.6,0.9283]